bitfinex-derivatives/quotes_SOLF0:USTF0_20250831
["timestamp","ask_amount","ask_price","bid_price","bid_amount"]
[1756634172393,123.26,204.31,204.28,4.51314526]
[1756634172597,123.29261474,204.31,204.27,7.87]
[1756634172897,123.22,204.3,204.28,4.51364955]
[1756634173089,123.22,204.3,204.27,7.87]
[1756634173292,123.24,204.29,204.28,4.51364955]
[1756634174092,0.03194965,204.31,204.28,4.51364955]
[1756634174298,123.2,204.3,204.29,4.51364955]
[1756634175091,123.2,204.3,204.24,7.87]
[1756634175400,123.2,204.3,204.25,12.38521162]
[1756634175596,123.2,204.3,204.26,4.51589252]
[1756634175797,123.2,204.3,204.27,4.51589252]
[1756634175997,123.2,204.3,204.28,4.51589252]
[1756634176198,0.03715331,204.3,204.25,7.87]
[1756634176500,123.12,204.29,204.26,4.51631408]
[1756634176694,123.12,204.29,204.27,4.51631408]
[1756634176895,123.12,204.29,204.28,4.51631408]
[1756634177296,0.03715331,204.3,204.28,4.51631408]
[1756634177598,0.03715331,204.3,204.29,4.51661003]
[1756634177793,123.11715331,204.3,204.29,4.51661003]
[1756634177988,123.08,204.3,204.29,4.51661003]
[1756634178601,123.08,204.3,204.24,7.87]
[1756634178803,123.08,204.3,204.25,4.5171541]
[1756634179001,123.08,204.3,204.24,7.87]
[1756634179002,123.08,204.3,204.26,4.5171541]
[1756634179206,123.08,204.3,204.27,4.5171541]
[1756634179499,123.08,204.3,204.28,4.51774577]
[1756634179694,123.08,204.3,204.21,7.87]
[1756634179896,123.08,204.3,204.22,4.51776811]
[1756634180095,123.08,204.3,204.23,4.51776811]
[1756634180294,0.03528363,204.28,204.24,4.51776811]
[1756634180604,0.03528363,204.28,204.25,4.51776811]
[1756634180803,0.03528363,204.28,204.26,4.51776811]
[1756634181004,0.03528363,204.28,204.27,4.51776811]
[1756634182006,122.99528363,204.28,204.27,4.51776811]
[1756634182202,122.99528363,204.28,204.21,7.87]
[1756634182407,122.99528363,204.28,204.22,4.5206762]
[1756634182704,0.03528363,204.28,204.23,12.3906762]
[1756634183008,122.96,204.27,204.24,4.5206762]
[1756634183306,122.92,204.26,204.25,4.5206762]
[1756634183504,122.94,204.26,204.25,4.5206762]
[1756634184910,122.96,204.26,204.25,4.5206762]
[1756634185608,0.0312968,204.28,204.25,4.5206762]
[1756634185802,0.0312968,204.28,204.26,4.52187825]
[1756634186006,0.0312968,204.28,204.11,5.4068999]
[1756634186007,122.88,204.27,204.17,7.87]
[1756634186205,0.02,204.33,204.19,7.87]
[1756634186401,122.88,204.27,204.21,7.87]
[1756634186601,123.0,204.28,204.23,7.87]
[1756634186810,123.0,204.28,204.24,4.52159741]
[1756634187110,123.0,204.28,204.25,4.52159741]
[1756634187312,123.0,204.28,204.26,12.39159741]
[1756634187507,123.0,204.28,204.27,4.52159741]
[1756634188812,123.09,204.28,204.27,4.52159741]
[1756634189512,123.09,204.28,204.27,4.52764347]
[1756634190413,123.51,204.28,204.27,4.52764347]
[1756634190717,0.53,204.28,204.27,4.52764347]
[1756634190909,123.49,204.28,204.27,4.52764347]
[1756634191712,0.53,204.28,204.27,4.52764347]
[1756634191913,123.49,204.28,204.27,4.52764347]
[1756634192610,0.48,204.28,204.27,4.52764347]
[1756634192819,0.05,204.33,204.27,12.39764347]
[1756634193013,122.9,204.32,204.28,12.39764347]
[1756634193210,122.95,204.32,204.29,4.52764347]
[1756634193410,122.94,204.31,204.3,4.52764347]
[1756634193808,0.05,204.38,204.3,12.39764347]
[1756634194015,6.92,204.37,204.31,4.52764347]
[1756634194325,0.05,204.38,204.33,7.87]
[1756634194514,87.34,204.37,204.34,12.39764347]
[1756634194714,87.34,204.37,204.35,4.52764347]
[1756634194911,87.34,204.37,204.36,4.52764347]
[1756634195318,122.98,204.37,204.36,4.52764347]
[1756634195812,123.03,204.37,204.36,4.52764347]
[1756634196016,0.05,204.37,204.36,4.52764347]
[1756634196217,123.01,204.37,204.36,4.52764347]
[1756634196718,122.96,204.37,204.33,0.0317252]
[1756634197015,334.54084985,204.43,204.34,4.52835226]
[1756634197319,122.9,204.42,204.35,4.52835226]
[1756634197618,0.05,204.41,204.33,0.0317252]
[1756634197819,122.9,204.42,204.34,4.52965285]
[1756634197820,128.36084985,204.42,204.34,4.52965285]
[1756634198019,0.05,204.41,204.33,0.0317252]
[1756634198220,5.46084985,204.41,204.34,4.52973819]
[1756634198516,5.46084985,204.41,204.33,0.0317252]
[1756634198517,0.05,204.41,204.33,0.0317252]
[1756634198818,5.46084985,204.41,204.34,4.53107712]
[1756634199016,0.05,204.4,204.33,0.0317252]
[1756634199218,0.05,204.4,204.34,4.53111923]
[1756634199415,0.05,204.4,204.33,0.0317252]
[1756634199610,5.46084985,204.41,204.34,4.53215798]
[1756634199815,0.05,204.4,204.33,0.0317252]
[1756634200016,0.05,204.4,204.34,4.53215721]
[1756634200318,5.46084985,204.41,204.35,4.53321174]
[1756634200512,0.05,204.4,204.33,0.0317252]
[1756634200819,0.05,204.4,204.34,4.53327712]
[1756634201014,0.05,204.4,204.35,4.53327712]
[1756634201215,123.18,204.39,204.33,0.0317252]
[1756634201418,0.05,204.38,204.34,4.53385562]
[1756634201617,123.18,204.39,204.35,4.53385562]
[1756634201823,0.05,204.38,204.33,0.0317252]
[1756634202325,0.05,204.36,204.33,0.0317252]
[1756634202713,0.05,204.34,204.33,0.0317252]
[1756634202913,123.2,204.34,204.22,7.88]
[1756634203115,123.2,204.34,204.23,4.53450085]
[1756634203312,123.2,204.34,204.24,4.53450085]
[1756634203512,123.2,204.34,204.25,4.53450085]
[1756634203717,123.2,204.34,204.26,4.53450085]
[1756634204018,123.2,204.34,204.27,4.53450085]
[1756634204218,0.03342391,204.32,204.28,4.53450085]
[1756634204425,0.03342391,204.32,204.29,4.53450085]
[1756634204630,0.03342391,204.32,204.22,7.88]
[1756634204826,0.03342391,204.32,204.23,4.53417273]
[1756634205026,0.03342391,204.32,204.24,4.53417273]
[1756634205329,0.03342391,204.32,204.22,7.88]
[1756634205330,0.03342391,204.32,204.25,4.53417273]
[1756634205628,0.03342391,204.32,204.26,4.53417273]
[1756634205821,0.03342391,204.32,204.27,4.53417273]
[1756634206021,0.03342391,204.32,204.28,4.53417273]
[1756634206221,0.03342391,204.32,204.29,4.53417273]
[1756634206425,0.03342391,204.32,204.22,7.88]
[1756634206622,0.03342391,204.32,204.23,4.53393501]
[1756634206927,0.03342391,204.32,204.24,4.53393501]
[1756634207127,0.03342391,204.32,204.22,7.88]
[1756634207330,0.03342391,204.32,204.23,4.53393501]
[1756634207630,0.03342391,204.32,204.24,4.53393501]
[1756634207832,0.03342391,204.32,204.25,4.53393501]
[1756634208030,0.03342391,204.32,204.18,7.88]
[1756634208031,5.46084985,204.33,204.26,4.53393501]
[1756634208229,5.46084985,204.33,204.18,7.88]
[1756634208430,0.03381455,204.31,204.2,7.88]
[1756634208630,0.03381455,204.31,204.21,4.53277294]
[1756634208830,46.56,204.32,204.22,4.53277294]
[1756634209031,46.56,204.32,204.23,4.53277294]
[1756634209231,0.03705221,204.28,204.24,4.53277294]
[1756634209439,123.16,204.27,204.25,4.53277294]
[1756634209737,123.16,204.27,204.26,4.53277294]
[1756634209938,0.03705221,204.28,204.26,4.53277294]
[1756634210139,123.12,204.27,204.16,7.88]
[1756634210335,123.12,204.27,204.18,7.88]
[1756634210542,5.46084985,204.33,204.2,7.88]
[1756634210738,123.08,204.32,204.21,4.53196615]
[1756634210937,0.03256694,204.25,204.23,7.88]
[1756634211140,123.08,204.24,204.23,7.88]
[1756634211332,123.06,204.24,204.23,12.41137715]
[1756634211933,0.0368835,204.26,204.23,12.41137715]
[1756634212137,123.06,204.25,204.24,4.53137715]
[1756634212538,0.0368835,204.26,204.25,7.88]
[1756634212743,35.84,204.26,204.25,4.53137715]
[1756634212942,27.87,204.26,204.25,4.53137715]
[1756634213346,329.02,204.35,204.26,7.88]
[1756634213643,123.1,204.34,204.28,7.88]
[1756634213847,329.02,204.35,204.3,7.88]
[1756634214047,123.16,204.33,204.32,7.88]
[1756634214245,123.16,204.33,204.32,12.41137715]
[1756634214645,329.02,204.35,204.32,12.41137715]
[1756634214846,329.02,204.35,204.34,7.88]
[1756634215046,452.14,204.35,204.34,12.41137715]
[1756634216147,459.67,204.35,204.34,4.53137715]
[1756634216743,459.81,204.35,204.34,4.53137715]
[1756634217850,329.02,204.35,204.32,0.0359292]
[1756634218052,130.73,204.34,204.33,4.52840388]
[1756634219352,7.53,204.34,204.33,4.52840388]
[1756634219553,130.67,204.34,204.33,4.52840388]
[1756634220655,329.02,204.35,204.33,12.40840388]
[1756634220843,329.02,204.35,204.34,4.52774544]
[1756634221046,452.14,204.35,204.34,4.52774544]
[1756634221654,329.02,204.35,204.34,12.40774544]
[1756634221851,452.1,204.35,204.34,12.40774544]
[1756634222052,329.02,204.35,204.34,12.40774544]
[1756634222247,452.34,204.35,204.34,12.40774544]
[1756634222657,329.02,204.35,204.34,12.40774544]
[1756634222850,452.34,204.35,204.34,12.40774544]
[1756634224553,7.53,204.46,204.34,5.00774544]
[1756634224758,7.53,204.46,204.32,0.0359292]
[1756634224759,123.28,204.45,204.35,12.40774544]
[1756634224959,123.28,204.45,204.36,4.52774544]
[1756634225159,123.28,204.45,204.37,4.52774544]
[1756634225358,123.28,204.45,204.38,4.56131834]
[1756634225659,7.53,204.44,204.39,4.52774544]
[1756634225859,7.53,204.44,204.38,0.0335729]
[1756634234064,130.59,204.43,204.38,7.4135729]
[1756634234359,7.45,204.42,204.38,7.4135729]
[1756634235762,7.45,204.42,204.38,0.0335729]
[1756634235963,123.14,204.43,204.38,0.0335729]
[1756634236864,7.45,204.42,204.38,0.0335729]
[1756634237367,123.14,204.43,204.38,0.0335729]
[1756634237664,7.45,204.42,204.38,0.0335729]
[1756634237859,123.14,204.43,204.38,0.0335729]
[1756634238060,7.45,204.42,204.38,0.0335729]
[1756634238254,123.14,204.43,204.38,0.0335729]
[1756634239557,7.45,204.41,204.38,0.0335729]
[1756634240161,123.04,204.42,204.38,0.0335729]
[1756634241064,7.45,204.41,204.38,0.0335729]
[1756634241265,123.04,204.42,204.38,0.0335729]
[1756634242363,7.45,204.41,204.38,0.0335729]
[1756634242564,123.04,204.42,204.38,0.0335729]
[1756634242768,7.45,204.41,204.38,0.0335729]
[1756634243362,123.04,204.42,204.38,0.0335729]
[1756634244468,7.45,204.41,204.38,0.0335729]
[1756634244664,7.45,204.41,204.26,7.38]
[1756634244972,7.45,204.41,204.27,4.51667441]
[1756634245168,7.45,204.41,204.28,4.51667441]
[1756634245359,7.45,204.41,204.29,4.51667441]
[1756634245568,7.45,204.41,204.3,4.51667441]
[1756634245860,7.45,204.41,204.31,4.51667441]
[1756634246073,7.45,204.37,204.22,7.38]
[1756634246364,0.03632428,204.38,204.22,7.38]
[1756634246365,7.45,204.35,204.23,4.51703859]
[1756634246565,7.45,204.35,204.24,4.51703859]
[1756634246866,0.0366457,204.31,204.25,4.51703859]
[1756634247070,29.95,204.3,204.26,4.51703859]
[1756634247269,29.95,204.3,204.27,4.51703859]
[1756634247470,29.95,204.3,204.28,4.51703859]
[1756634247672,29.95,204.3,204.29,4.51703859]
[1756634247968,0.0366457,204.31,204.29,4.51703859]
[1756634248170,123.1,204.3,204.18,7.38]
[1756634248468,123.08,204.29,204.2,7.38]
[1756634248773,123.08,204.29,204.22,7.38]
[1756634249064,0.03459066,204.26,204.23,4.51723413]
[1756634249268,0.03459066,204.26,204.25,7.38]
[1756634249462,0.03459066,204.26,204.25,11.8976015]
[1756634252171,122.95459066,204.26,204.25,4.5176015]
[1756634256173,122.95459066,204.26,204.14,4.09008348]
[1756634256174,130.40459066,204.26,204.18,7.38]
[1756634256373,130.40459066,204.26,204.19,4.50571913]
[1756634256574,130.37,204.26,204.2,4.50571913]
[1756634256774,7.45,204.25,204.21,4.50571913]
[1756634256976,7.45,204.24,204.22,4.50571913]
[1756634257274,7.45,204.24,204.23,4.50571913]
[1756634257466,43.91,204.24,204.23,4.50571913]
[1756634257669,78.55,204.24,204.23,4.50571913]
[1756634257869,111.37,204.24,204.23,4.50571913]
[1756634258173,7.45,204.24,204.23,4.50571913]
[1756634258372,43.69,204.24,204.23,4.50571913]
[1756634258877,79.37,204.24,204.23,4.50571913]
[1756634259175,113.17,204.24,204.23,4.50571913]
[1756634259981,113.17,204.24,204.18,7.38]
[1756634260174,105.72,204.24,204.19,4.50361129]
[1756634260380,7.73,204.23,204.2,4.50361129]
[1756634260580,7.73,204.23,204.21,4.50361129]
[1756634260777,7.73,204.23,204.22,4.50361129]
[1756634262273,122.72,204.23,204.22,4.50361129]
[1756634263075,0.03620791,204.25,204.22,4.50361129]
[1756634263282,122.66,204.24,204.13,7.21]
[1756634263483,122.66,204.24,204.15,7.21]
[1756634263780,7.73,204.25,204.16,11.70834553]
[1756634263981,0.03524546,204.22,204.17,4.49834553]
[1756634264181,0.03524546,204.22,204.19,7.21]
[1756634264482,0.03524546,204.22,204.2,4.49834553]
[1756634264682,0.03524546,204.22,204.21,4.49834553]
[1756634265182,7.76524546,204.22,204.21,4.49834553]
[1756634266784,130.38524546,204.22,204.21,4.49834553]
[1756634267180,7.76524546,204.22,204.21,4.49834553]
[1756634267386,122.63524546,204.22,204.21,4.49834553]
[1756634268179,0.03524546,204.22,204.21,4.49834553]
[1756634268386,122.63524546,204.22,204.21,4.49834553]
[1756634269084,130.36524546,204.22,204.21,4.49834553]
[1756634270483,0.03524546,204.22,204.21,4.49834553]
[1756634270681,122.53524546,204.22,204.21,11.70834553]
[1756634270881,122.53524546,204.22,204.21,11.70464297]
[1756634271882,122.53524546,204.22,204.21,4.49464297]
[1756634272983,130.26524546,204.22,204.21,4.49464297]
[1756634274497,0.03524546,204.22,204.21,4.49464297]
[1756634274697,122.43524546,204.22,204.21,4.49464297]
[1756634275399,130.16524546,204.22,204.21,4.49464297]
[1756634275599,7.76524546,204.22,204.21,4.49464297]
[1756634275790,130.10524546,204.22,204.21,4.49464297]
[1756634281709,129.84524546,204.22,204.21,4.49464297]
[1756634286510,0.03524546,204.22,204.21,4.49464297]
[1756634286716,32.47524546,204.22,204.21,11.70464297]
[1756634286907,32.47524546,204.22,204.21,4.49464297]
[1756634287410,40.20524546,204.22,204.21,4.49464297]
[1756634289214,40.20524546,204.22,204.12,4.09975912]
[1756634289405,40.20524546,204.22,204.13,4.53410389]
[1756634289610,7.51,204.21,204.1,11.96975912]
[1756634290216,7.5424576,204.18,204.1,11.96975912]
[1756634290416,40.02,204.17,204.1,11.96975912]
[1756634290604,7.5424576,204.18,204.1,7.87]
[1756634290810,47.24,204.16,204.1,7.87]
[1756634291115,7.51,204.15,204.09,4.09975912]
[1756634291316,53.76,204.14,204.08,11.96975912]
[1756634292005,0.03298393,204.13,204.09,7.87]
[1756634292209,59.92,204.12,204.08,4.09975912]
[1756634292413,65.76,204.11,204.09,7.87]
[1756634292710,65.76,204.11,204.08,4.09975912]
[1756634292918,65.76,204.11,204.09,7.87]
[1756634293613,71.3,204.11,204.09,7.87]
[1756634294313,7.51,204.1,204.06,4.09975912]
[1756634294512,7.51,204.1,204.06,11.96975912]
[1756634295017,7.54267354,204.1,204.06,11.96975912]
[1756634296215,103.9,204.09,204.06,11.96975912]
[1756634296421,103.9,204.09,204.05,4.09975912]
[1756634296422,7.51,204.08,204.05,4.09975912]
[1756634296618,7.51,204.08,204.02,4.09975912]
[1756634297416,7.51,204.08,204.01,11.96975912]
[1756634297618,122.74,204.07,204.01,11.96975912]
[1756634298418,122.74,204.07,204.01,7.87]
[1756634299313,122.66,204.06,204.01,7.87]
[1756634299509,122.72,204.07,204.01,7.87]
[1756634300011,0.03657195,204.06,204.01,7.87]
[1756634300221,0.03657195,204.06,204.02,7.87]
[1756634300419,0.03657195,204.06,204.01,4.09975912]
[1756634300718,0.03657195,204.06,204.02,7.87]
[1756634301619,0.03657195,204.06,204.01,0.5]
[1756634301913,0.03657195,204.06,204.02,7.87]
[1756634302512,0.03657195,204.06,204.01,0.5]
[1756634302811,0.03657195,204.06,204.02,7.87]
[1756634303016,0.03657195,204.06,204.0,4.09975912]
[1756634303017,0.03657195,204.06,204.04,7.87]
[1756634303715,0.03657195,204.06,204.03,4.09975912]
[1756634303919,0.03657195,204.06,204.04,8.37]
[1756634304514,7.51,204.14,204.04,7.87]
[1756634304820,7.51,204.14,204.05,7.87]
[1756634305918,7.51,204.14,204.07,0.03698316]
[1756634306124,7.51,204.14,204.08,7.87]
[1756634313626,7.51,204.14,204.07,0.03698316]
[1756634314623,35.7,204.13,204.07,0.03698316]
[1756634315224,7.51,204.12,204.07,0.03698316]
[1756634315726,35.7,204.13,204.07,0.03698316]
[1756634315928,7.51,204.12,204.08,4.50333635]
[1756634316126,7.51,204.12,204.09,4.50333635]
[1756634316320,7.51,204.12,204.1,4.50333635]
[1756634316520,7.51,204.12,204.07,0.03698316]
[1756634316521,7.51,204.12,204.11,4.50333635]
[1756634318531,7.99,204.12,204.07,0.03698316]
[1756634318833,7.51,204.12,204.07,0.03698316]
[1756634327932,0.85290982,204.16,204.07,0.03698316]
[1756634328234,129.16,204.15,204.07,0.03698316]
[1756634328838,129.16,204.15,204.07,7.44698316]
[1756634329041,6.98,204.15,204.07,7.44698316]
[1756634329234,81.34,204.14,204.07,7.44698316]
[1756634329936,6.98,204.15,204.07,7.44698316]
[1756634330141,111.22,204.14,204.07,7.44698316]
[1756634331536,122.2,204.13,204.07,7.44698316]
[1756634332834,6.98,204.15,204.07,7.44698316]
[1756634333334,63.2,204.14,204.07,7.44698316]
[1756634334538,7.83290982,204.16,204.07,7.44698316]
[1756634334837,92.94,204.15,204.07,7.44698316]
[1756634336533,6.98,204.14,204.07,7.44698316]
[1756634339040,6.98,204.14,204.07,0.03698316]
[1756634342243,120.94,204.13,204.07,7.44698316]
[1756634342944,6.98,204.14,204.07,7.44698316]
[1756634343140,22.08,204.13,204.07,7.44698316]
[1756634343742,29.06,204.13,204.07,7.44698316]
[1756634344142,53.38,204.12,204.07,7.44698316]
[1756634344345,6.98,204.11,204.07,7.44698316]
[1756634345047,6.98,204.11,204.08,7.41]
[1756634348049,7.02,204.15,204.07,7.95698316]
[1756634348248,7.02,204.13,204.07,7.95698316]
[1756634355856,7.02,204.13,204.07,0.03698316]
[1756634359155,79.36,204.14,204.01,4.12231167]
[1756634359156,6.97,204.11,204.01,4.12231167]
[1756634359368,6.97,204.11,203.97,4.12231167]
[1756634359660,6.97,204.11,203.96,12.04231167]
[1756634359861,6.97,204.1,203.96,7.92]
[1756634360557,5.46084985,204.11,203.96,7.92]
[1756634360558,6.97,204.04,203.96,7.92]
[1756634360746,32.23685508,204.03,203.96,7.92]
[1756634360955,6.97,204.01,203.94,4.12231167]
[1756634361261,3.51617383,204.0,203.93,7.92]
[1756634361561,6.97,204.01,203.93,7.92]
[1756634361864,0.03416501,203.99,203.93,7.92]
[1756634369168,0.03416501,203.99,203.93,4.12231167]
[1756634369366,0.03416501,203.99,203.94,7.92]
[1756634371179,329.38,204.06,203.94,8.45105835]
[1756634371379,329.38,204.06,203.96,7.92]
[1756634371780,336.38,204.06,203.96,7.92]
[1756634372483,336.38,204.06,204.0,7.92]
[1756634372681,329.38,204.06,204.0,7.92]
[1756634373783,122.1,204.08,204.0,7.92]
[1756634374585,122.08,204.09,204.0,7.92]
[1756634375382,129.04,204.1,204.0,7.92]
[1756634376787,3.53708018,204.09,204.0,7.92]
[1756634376987,7.0,204.09,204.0,7.92]
[1756634380286,3.53800551,204.08,204.0,7.92]
[1756634380486,7.0,204.07,204.0,7.92]
[1756634386255,7.0,204.07,203.99,0.0347572]
[1756634386697,7.0,204.07,204.0,7.43]
[1756634387094,121.84,204.06,204.0,7.43]
[1756634387501,7.0,204.07,204.0,7.43]
[1756634387800,121.84,204.06,204.0,7.43]
[1756634388397,6.31375967,204.16,204.0,7.43]
[1756634388609,88.4644874,204.15,204.0,7.43]
[1756634388901,7.0,204.13,204.0,7.43]
[1756634389106,7.0,204.11,204.0,7.43]
[1756634389294,7.0,204.09,204.0,7.43]
[1756634389498,77.92,204.15,204.04,0.03360399]
[1756634389801,10.54487292,204.14,204.04,0.03360399]
[1756634390004,7.0,204.12,204.04,0.03360399]
[1756634390200,3.54487292,204.11,204.04,0.03360399]
[1756634390396,10.54487292,204.1,204.04,0.03360399]
[1756634390605,3.54487292,204.09,204.04,0.03360399]
[1756634390904,7.0,204.11,204.05,7.43]
[1756634391604,128.82,204.14,204.05,7.43]
[1756634391802,3.54614713,204.13,204.05,7.43]
[1756634392006,128.82,204.14,204.05,7.43]
[1756634392204,3.5461462,204.13,204.05,7.43]
[1756634392399,128.82,204.14,204.07,0.03208595]
[1756634392601,3.54612914,204.13,204.07,0.03208595]
[1756634392798,128.82,204.14,204.07,0.03208595]
[1756634393003,3.54613105,204.13,204.07,0.03208595]
[1756634393203,128.82,204.14,204.07,0.03208595]
[1756634393397,3.54596601,204.13,204.07,0.03208595]
[1756634393597,7.0,204.13,204.07,0.03208595]
[1756634396108,121.8,204.14,204.08,7.43]
[1756634396303,7.0,204.12,204.07,0.03208595]
[1756634396503,7.0,204.13,204.07,0.03208595]
[1756634397808,7.0,204.11,204.07,0.03208595]
[1756634398104,121.8,204.12,204.07,0.03208595]
[1756634398304,7.0,204.11,204.07,0.03208595]
[1756634398505,121.8,204.12,204.07,0.03208595]
[1756634399097,7.0,204.11,204.07,0.03208595]
[1756634399708,121.8,204.1,204.08,7.43]
[1756634400005,121.8,204.12,204.08,7.43]
[1756634400203,7.0,204.19,204.08,7.43]
[1756634400514,7.0,204.17,204.08,7.43]
[1756634400805,7.0,204.18,204.05,11.54306985]
[1756634401105,7.0,204.16,204.11,7.43]
[1756634401313,15.72,204.17,204.11,7.43]
[1756634401507,15.72,204.17,204.1,0.03667124]
[1756634401508,22.72,204.17,204.1,0.03667124]
[1756634401807,7.0,204.15,204.1,0.03667124]
[1756634402106,7.0,204.16,204.1,0.03667124]
[1756634403106,7.0,204.14,204.1,0.03667124]
[1756634403409,7.0,204.16,204.1,0.03667124]
[1756634403610,7.0,204.14,204.1,0.03667124]
[1756634403810,7.0,204.16,204.1,0.03667124]
[1756634404010,3.54858136,204.15,204.1,0.03667124]
[1756634404304,7.0,204.16,204.1,0.03667124]
[1756634404507,7.0,204.14,204.1,0.03667124]
[1756634404807,7.0,204.16,204.1,0.03667124]
[1756634405009,7.0,204.14,204.1,0.03667124]
[1756634405210,7.0,204.16,204.1,0.03667124]
[1756634405514,3.54786134,204.15,204.1,0.03667124]
[1756634405810,125.60786134,204.14,204.1,0.03667124]
[1756634406004,122.06,204.14,204.1,0.03667124]
[1756634406406,122.1,204.13,204.1,0.03667124]
[1756634406605,7.0,204.12,204.1,0.03667124]
[1756634407112,7.0,204.18,204.1,0.03667124]
[1756634407411,7.0,204.16,204.1,0.03667124]
[1756634407801,7.0,204.16,204.11,7.79]
[1756634408001,7.0,204.16,204.1,0.03667124]
[1756634408206,122.1,204.17,204.11,7.79]
[1756634408610,7.02,204.26,204.11,8.27]
[1756634408916,7.02,204.26,204.11,7.79]
[1756634408917,125.70987957,204.25,204.11,7.79]
[1756634409114,7.02,204.23,204.11,11.90306985]
[1756634409309,7.02,204.23,204.16,0.03663712]
[1756634411412,7.02,204.23,204.17,7.79]
[1756634411613,7.02,204.23,204.16,0.03663712]
[1756634413716,7.02,204.21,204.16,0.03663712]
[1756634414609,7.02,204.19,204.16,0.03663712]
[1756634414810,7.02,204.24,204.16,0.03663712]
[1756634415008,5.46084985,204.25,204.16,0.03663712]
[1756634415009,7.02,204.22,204.16,0.03663712]
[1756634415210,7.02,204.2,204.16,0.03663712]
[1756634416012,7.02,204.18,204.16,0.03663712]
[1756634417110,329.28,204.19,204.16,0.03663712]
[1756634417307,7.02,204.18,204.16,0.03663712]
[1756634418016,329.28,204.19,204.16,0.03663712]
[1756634418213,122.88,204.18,204.16,0.03663712]
[1756634418522,7.02,204.17,204.16,0.03663712]
[1756634418714,129.9,204.17,204.16,0.03663712]
[1756634418914,129.88,204.17,204.16,0.03663712]
[1756634420316,129.86,204.17,204.16,0.03663712]
[1756634421124,129.8,204.17,204.16,0.03663712]
[1756634421417,129.76,204.17,204.16,0.03663712]
[1756634422322,7.02,204.17,204.16,0.03663712]
[1756634422523,129.76,204.17,204.16,0.03663712]
[1756634423015,129.74,204.17,204.16,0.03663712]
[1756634423321,122.68,204.17,204.16,0.03663712]
[1756634423625,129.7,204.17,204.16,0.03663712]
[1756634425521,7.02,204.17,204.16,0.03663712]
[1756634425724,129.64,204.17,204.16,0.03663712]
[1756634425922,7.02,204.17,204.16,0.03663712]
[1756634426124,129.62,204.17,204.16,0.03663712]
[1756634426923,7.02,204.17,204.16,0.03663712]
[1756634427125,122.6,204.17,204.16,0.03663712]
[1756634427430,129.62,204.17,204.16,0.03663712]
[1756634430432,129.44,204.17,204.16,0.03663712]
[1756634431629,7.02,204.17,204.16,0.03663712]
[1756634431830,129.44,204.17,204.16,0.03663712]
[1756634434636,7.02,204.17,204.16,0.03663712]
[1756634434835,129.44,204.17,204.16,0.03663712]
[1756634435634,122.46,204.17,204.16,0.03663712]
[1756634437741,7.02,204.18,204.16,0.03663712]
[1756634437940,122.4,204.17,204.16,0.03663712]
[1756634438440,129.38,204.17,204.16,0.03663712]
[1756634439935,129.34,204.17,204.16,0.03663712]
[1756634440136,122.36,204.17,204.16,0.03663712]
[1756634442540,122.24,204.17,204.16,0.03663712]
[1756634442740,6.98,204.18,204.16,0.03663712]
[1756634442941,122.22,204.17,204.16,0.03663712]
[1756634446346,122.14,204.17,204.16,0.03663712]
[1756634446550,336.26,204.19,204.16,0.03663712]
[1756634446741,329.28,204.19,204.17,7.79]
[1756634446943,122.22,204.18,204.16,0.51663712]
[1756634447253,329.28,204.19,204.17,7.79]
[1756634447544,119.24479601,204.18,204.17,7.79]
[1756634447749,122.22,204.18,204.17,7.79]
[1756634448447,6.98,204.26,204.17,7.79]